Cogmind - Beta 16.1 @@@ ROGUE MODE // 2026.02.17 @ 15:21:42 Player: delto Result: Destroyed by as-64965 with Assembled Heavy Rifle Performance ------------- Evolutions (0) 0 Regions Visited (2) 400 Robots Destroyed (15) 75 Value Destroyed (344) 344 Prototype IDs (1) 20 Alien Tech Used (0) 0 Bonus (50) 50 TOTAL SCORE: 889 Bonus ------- Follower Combat Kills 50 Cogmind --------- Core Integrity 0/250 Matter 222/300 Energy 100/100 System Corruption 1% Temperature Cool (0) Movement Rolling (100) Location -10/Mines Parts ------- > --- POWER (1) -------- (None) > --- PROPULSION (2) --- Light Treads Compact Wheel > --- UTILITY (2) ------ (None) > --- WEAPON (2) ------- Assault Rifle > --- INVENTORY (5) ---- Huge Storage Unit Peak State ------------ > --- POWER ------------ Light Nuclear Core > --- PROPULSION ------- Light Treads Compact Wheel > --- UTILITY ---------- Improved Terrain Scanner Thief Drone Bay > --- WEAPON ----------- Assault Rifle Grenade Launcher > --- INVENTORY -------- Light Treads Compact Wheel Huge Storage Unit Seismic Detector Tractor Beam [Rating: 17] Favorites ----------- Power Light Nuclear Core Engine Ion Engine Power Core Light Nuclear Core Propulsion Light Treads Treads Light Treads Wheel Compact Wheel Utility Improved Terrain Scanner Device Improved Terrain Scanner Storage Small Storage Unit Weapon Assault Rifle Ballistic Gun Assault Rifle Launcher Grenade Launcher Piercing Weapon Makeshift Spear Build | -11 -10 -10 ------- Run | Yrd Mat Min Slots Evolved . | . . . Power . | . . . Propulsion . | . . . Utility . | . . . Weapon . | . . . Parts Attached 16 | 9 3 4 Power 2 | 1 1 . Engine 1 | 1 . . Core 1 | . 1 . Reactor . | . . . Propulsion 5 | 2 2 1 Treads 3 | 1 2 . Leg . | . . . Wheel 2 | 1 . 1 Hover . | . . . Flight . | . . . Utility 5 | 4 . 1 Device 4 | 3 . 1 Storage 1 | 1 . . Processor . | . . . Hackware . | . . . Protection . | . . . Artifact . | . . . Weapon 4 | 2 . 2 Energy Gun . | . . . Energy Cannon . | . . . Ballistic Gun 2 | 2 . . Ballistic Cannon . | . . . Launcher 1 | . . 1 Special Weapon . | . . . Impact Weapon . | . . . Slashing Weapon . | . . . Piercing Weapon 1 | . . 1 Special Melee Weapon . | . . . Unidentified Prototypes 1 | . . 1 Parts Lost 8 | . . 8 Power 1 | . . 1 Propulsion 2 | . . 2 Utility 3 | . . 3 Weapon 2 | . . 2 Highest Loss Streak 8 | . . 8 To Critical Strikes . | . . . Average Backups 4 | 2 4 4 Power . | . . . Propulsion 1 | 1 2 1 Utility 1 | . 2 2 Weapon . | . . . Tool/Special . | . . . Unused Backups 11 | 4 5 2 Power 2 | 1 1 . Propulsion 4 | 2 2 . Utility 3 | . 1 2 Weapon 2 | 1 1 . Tool/Special . | . . . Average Slot Usage (%) 98 | . 100 96 Engine 5 | . 10 . Core 8 | . 3 13 Treads 14 | . 14 14 Wheel 13 | . 14 13 Device 27 | . 28 26 Ballistic Gun 20 | . 28 11 Launcher 5 | . . 12 Piercing Weapon 1 | . . 3 Peak Build Rating 17 | 9 11 17 Average Rating 10 | 5 9 12 On Entrance 6 | . 9 11 Avg Prop Armor Cover (%) 11 | 16 9 12 Naked Turns . | . . . Heaviest Build 15 | 14 10 15 Greatest Support 40 | 20 20 40 Greatest Overweight (x) . | . . . Average Overweight (x) . | . . . Largest Inventory Capacity 8 | 8 5 5 Average Capacity 5 | 7 5 5 Most Carried 7 | 7 5 5 Average Carried 4 | 2 4 4 Final Capacity 5 | 5 5 5 Final Carried 5 | 4 5 1 Class Distribution -------------------- 100% | Mutant Dominant Class ---------------- Mutant | -10/Materials Mutant | -10/Mines Resources | -11 -10 -10 ----------- Run | Yrd Mat Min Matter Collected 720 | 334 271 115 Remotely 473 | 247 131 95 Salvage Created 567 | 97 351 119 Parts 32 | 7 22 3 Haulers Intercepted . | . . . Recyclers Shooed 3 | 1 2 . Parts Field Recycled . | . . . Retrieved Matter . | . . . Parts Self-Destructed . | . . . Prevented . | . . . Parts Restored . | . . . Kills | -11 -10 -10 ------- Run | Yrd Mat Min Combat Hostiles Destroyed 17 | . 8 9 Melee 1 | . . 1 Guns 10 | . 8 2 AOE 6 | . . 6 Classes Destroyed 7 | 2 4 1 Worker 1 | . 1 . Tunneler 2 | 2 . . Recycler 1 | 1 . . Watcher 1 | . 1 . Swarmer 3 | . 3 . Grunt 7 | . 5 2 Assembled 7 | . . 7 Best Kill Streak 7 | 1 5 7 Combat Bots Only 7 | . 2 7 Max Kills in Single Turn 3 | 1 2 3 Gunslinging . | . . . Exploded 3 | . . 3 Melee 1 | . . 1 Uniques/NPCs Destroyed . | . . . Combat | -11 -10 -10 -------- Run | Yrd Mat Min Hostile Shots Fired 86 | . 38 48 Missed 18 | . 9 9 Hits 68 | . 29 39 Melee 4 | . . 4 Projectile 64 | . 29 35 AOE 3 | . . 3 Critical Strikes 1 | . 1 . Damage Taken 1053 | . 336 717 Core 260 | . 105 155 Absorbed by Shields . | . . . Core Remaining (%) 100 | 100 . . Volleys Fired 64 | 11 42 11 Largest 2 | 2 2 2 Hottest 40 | 40 40 40 Shots Fired 124 | 22 84 18 Gun 120 | 22 84 14 Cannon . | . . . Launcher 4 | . . 4 Special . | . . . Kinetic 120 | 22 84 14 Thermal . | . . . Explosive 4 | . . 4 Electromagnetic . | . . . Robot Hit Streak 10 | 10 5 9 Robot Miss Streak 6 | 2 6 2 Penetration Max . | . . . Secondary Targets 2 | . 1 1 Max Gunslinging Chain 1 | . 1 1 Shots Hit Robots 69 | 15 40 14 Core Hits 45 | 5 19 21 Critical Kills . | . . . Critical Parts Destroyed 1 | 1 . . Critical Strikes 1 | 1 . . Destroy 1 | 1 . . Melee Attacks 1 | . . 1 Impact . | . . . Slashing . | . . . Piercing 1 | . . 1 Sneak Attacks . | . . . Combat Hostiles . | . . . Follow-up Attacks . | . . . Damage Inflicted 1093 | 156 448 489 Guns 727 | 156 448 123 Cannons . | . . . Explosions 324 | . . 324 Melee 42 | . . 42 Ramming . | . . . Kinetic 727 | 156 448 123 Thermal . | . . . Explosive 324 | . . 324 Electromagnetic . | . . . Impact . | . . . Slashing . | . . . Piercing 42 | . . 42 Highest Corruption 1 | . 1 1 Average Corruption 1 | . 1 1 Corruption Purged . | . . . Corruption Blocked . | . . . Effects 11 | . 7 4 Message Errors 3 | . 1 2 Matter Fused 3 | . 3 . Heat Flow Errors 1 | . 1 . Energy Discharges 2 | . . 2 Data Loss (minor) 2 | . 2 . Overload Shots . | . . . Overflow Damage 17 | . . 17 Projectiles . | . . . Explosions 17 | . . 17 Melee . | . . . Knockbacks . | . . . Impact . | . . . Kinetic . | . . . Secondary . | . . . Self-Inflicted Damage 78 | . . 78 Shots 3 | . . 3 Rammed . | . . . Targets Rammed . | . . . Kicked . | . . . Crushed . | . . . Highest Temperature 190 | . 190 45 Average Temperature 49 | . 61 24 Received Heat Transfer 301 | . 168 133 Siege Activations . | . . . Martial Activations . | . . . Shielding Activations . | . . . Robots Disrupted . | . . . Combat Hostiles . | . . . Robots Corrupted . | . . . Combat Hostiles . | . . . Parts Fried . | . . . Impact Corruptions . | . . . Robots Melted . | . . . Combat Hostiles . | . . . Parts Melted . | . . . Heat Transferred . | . . . Parts Sabotaged . | . . . Parts Stolen . | . . . Parts Stripped . | . . . Power Chain Reactions . | . . . Alert | -11 -10 -10 ------- Run | Yrd Mat Min Maximum Alert Level . | . . . Low Security (%) 100 | 100 100 100 Level 1 . | . . . Level 2 . | . . . Level 3 . | . . . Level 4 . | . . . Level 5 . | . . . High Security . | . . . Max Security . | . . . Peak Influence 171 | 5 171 92 Initial 42 | . . 42 Average 44 | . 79 19 Influence Increases 436 | 15 345 76 Destroy 0b10 Robot/C 240 | . 200 40 Destroy 0b10 Robot/NC 40 | 15 25 . Destroy Leader 76 | . 66 10 Allied During Kill 8 | . 8 . Successful Hack 12 | . 12 . Destroy Structure 30 | . 4 26 Lose Combat Pursuer 30 | . 30 . Influence Decreases 436 | 15 235 186 Entered New Map 68 | . . 68 Time Decay 322 | 15 215 92 Lost Part 26 | . . 26 Lost Ally 20 | . 20 . Squads Dispatched 3 | . 3 . Investigation 2 | . 2 . Extermination . | . . . Reinforcement 1 | . 1 . Assault . | . . . Garrison . | . . . Intercept . | . . . Searches Triggered . | . . . Construction Impeded . | . . . Haulers Reinforced . | . . . Active Scanning Responses . | . . . Cargo Convoy Interrupts . | . . . Stealth | -11 -10 -10 --------- Run | Yrd Mat Min Distress Signals 2 | . 2 . Communications Jammed . | . . . Distress Signals . | . . . Times Spotted 37 | . 15 22 Peak Tracking Total 12 | . 4 12 Tactical Retreats 2 | . 2 . Traps | -11 -10 -10 ------- Run | Yrd Mat Min Traps Triggered 1 | . 1 . Indirectly . | . . . Trap Hack Attempts . | . . . Triggered . | . . . Disarmed . | . . . Reprogrammed . | . . . Reused . | . . . Traps Extracted . | . . . Installed . | . . . Triggered . | . . . Machines | -11 -10 -10 ---------- Run | Yrd Mat Min Machines Disabled . | . . . Max in Single Turn . | . . . Machines Repaired . | . . . Machines Dismantled . | . . . Machines Sabotaged . | . . . Overloaded Fab Kills . | . . . Hacking | -11 -10 -10 --------- Run | Yrd Mat Min Machines Accessed 5 | . 4 1 Terminals 3 | . 3 . Fabricators . | . . . Repair Stations . | . . . Recycling Units 1 | . 1 . Scanalyzers . | . . . Garrison Access . | . . . Total Hacks 12 | . 11 1 Successful 8 | . 7 1 Failed 4 | . 4 . Catastrophic 1 | . 1 . Database Lockouts . | . . . Manual 11 | . 11 . Terminals 8 | . 8 . Fabricators . | . . . Repair Stations . | . . . Recycling Units 3 | . 3 . Scanalyzers . | . . . Garrison Access . | . . . Terminal Hacks 3 | . 2 1 Open Door 1 | . . 1 Branch Access Points 1 | . 1 . Terminal Index 1 | . 1 . Fabricator Hacks . | . . . Repair Station Hacks . | . . . Recycling Unit Hacks . | . . . Scanalyzer . | . . . Garrison Access Hacks . | . . . Unauthorized Hacks 5 | . 5 . Terminals 3 | . 3 . Botnet 3 | . 3 . Fabricators . | . . . Repair Stations . | . . . Recycling Units 2 | . 2 . Reject 1 | . 1 . Mask 1 | . 1 . Scanalyzers . | . . . Garrison Access . | . . . Data Cores Recovered . | . . . Used . | . . . Hacking Detections 4 | . 4 . Full Trace Events 2 | . 2 . Feedback Events . | . . . Feedback Blocked . | . . . Robot Schematics Acquired . | . . . Robots Built . | . . . Authchips . | . . . Time . | . . . Total Robot Build Rating . | . . . Part Schematics Acquired . | . . . Parts Built . | . . . Authchips . | . . . Time . | . . . Total Part Build Rating . | . . . Part Studies Acquired . | . . . Parts Repaired . | . . . Time . | . . . Parts Recycled . | . . . Recycled Matter . | . . . Retrieved Matter . | . . . Retrieved Components . | . . . Parts Scanalyzed . | . . . Part Schematics Acquired . | . . . Parts Damaged . | . . . Bothacking | -11 -10 -10 ------------ Run | Yrd Mat Min Used RIF Installer . | . . . Robots Hacked . | . . . Non-combat . | . . . Combat . | . . . Robot Hacks Applied . | . . . Relay Couplers Released . | . . . Fabnet Peak Effective % . | . . . Robots Rewired . | . . . Allies Hacked . | . . . Hacks Repelled . | . . . Allies | -11 -10 -10 -------- Run | Yrd Mat Min Total Allies 1 | 1 . . Largest Group 1 | 1 1 . Highest-Rated Group 29 | 29 29 . Highest-Rated Ally 29 | 29 29 . Total Orders 3 | . . 3 EXPLORE 3 | . . 3 Ally Attacks 22 | . 22 . Total Damage 368 | . 368 . Kills 5 | . 5 . Allies Corrupted . | . . . Allies Melted . | . . . Intel | -11 -10 -10 ------- Run | Yrd Mat Min Active Infowar (turns) 943 | 8 513 422 Terrain 943 | 8 513 422 Seismic 827 | 6 508 313 Robot Analysis Total . | . . . Derelict Logs Recovered . | . . . Drone Launches 3 | . . 3 Drone Recoveries . | . . . Exploration | -11 -10 -10 ------------- Run | Yrd Mat Min Turns Passed 1103 | 142 513 448 Spaces Moved 634 | 84 297 253 Core 3 | 3 . . Treads 122 | 4 112 6 Legs . | . . . Wheels 509 | 77 185 247 Hover . | . . . Flight . | . . . Fastest Speed 50 | 50 100 100 Average Speed 111 | 101 122 101 Slowest Speed 160 | 160 160 160 Overloaded Moves . | . . . Propulsion Burnouts . | . . . Robots Hopped . | . . . Potential Cave-ins 4 | . . 4 Cave-ins Triggered . | . . . Exploration Rate (%) 52 | 4 57 97 Regions Visited 2 Branch Regions 1 Pre-discovered Areas . | . . . Known Exits Taken 1 | . 1 . Unknown Exits Taken 1 | 1 . . Scrap Searched 1 | . . 1 Spaces Dug . | . . . Terrain Destroyed 33 | . . 33 Melee . | . . . Projectile . | . . . AOE 33 | . . 33 Terrain Rammed . | . . . Walls Destroyed . | . . . Machines Disabled . | . . . Actions | -11 -10 -10 --------- Run | Yrd Mat Min Total 912 | 119 367 426 Wait 140 | 3 5 132 Move 632 | 83 296 253 Hop . | . . . Pick Up 17 | 8 6 3 Fast Attach 10 | 7 1 2 Attach 6 | . . 6 Detach 1 | . . 1 Swap 18 | 2 11 5 Drop 16 | 5 6 5 Fire 64 | 11 42 11 Melee 1 | . . 1 Ram . | . . . Kick . | . . . Crush . | . . . Escape Stasis . | . . . Rewire 7 | . . 7 Trap . | . . . Miscellaneous . | . . . Route ------- -11/Scrapyard -10/Materials (discovered 2 exits: [*Mat] / *Min) -10/Mines (discovered 3 exits: [*Mat x2] / [*Sub]) History --------- Turn | Location | Event 2 | -11/Scrapyard | Met Revision 17 36 | -11/Scrapyard | Discovered new exit (range 15) 60 | -11/Scrapyard | Botcube activated 70 | -11/Scrapyard | Botcube completed mutation into legged form, armed with 1 gun. 143 | -11/Scrapyard | Entered Materials 143 | -10/Materials | Accompanied by 1 ally 247 | -10/Materials | Discovered new exit (range 4) 317 | -10/Materials | Build established: Mutant 510 | -10/Materials | Discovered new exit (range 15) 631 | -10/Materials | Identified exit to Mines 656 | -10/Materials | Entered Mines 665 | -10/Mines | Core integrity fell below 50% 735 | -10/Mines | Found the Drone Emporium 740 | -10/Mines | Found Prototype Device 741 | -10/Mines | Identified Thief Drone Bay 831 | -10/Mines | Discovered new exit (range 56) 852 | -10/Mines | Discovered new exit (range 26) 890 | -10/Mines | Discovered new exit (range 46) 986 | -10/Mines | A weapon hastily lodged in a ceiling crevice suddenly fell to the ground 1063 | -10/Mines | Assembled infested the area 1068 | -10/Mines | Assisted by a Guerilla fighting off Assembled 1095 | -10/Mines | Core integrity fell below 20% 1104 | -10/Mines | Destroyed by as-64965 with Assembled Heavy Rifle Last Messages --------------- 01089_ Lgt. Treads destroyed. 01090_ HV Slug penetrates D-53 Grenadier. 01090_ as-14254 destroyed. 01091_ Acquired 8 matter. 01091_ The unstable cave ceiling collapses. 01091_ Cmb. Airjet crushed. 01092_ The unstable cave ceiling collapses. 01092_ Tractor Beam destroyed. 01093_ Mak. Spear destroyed. 01094_ The unstable cave ceiling collapses. 01095_ as-73209 destroyed. 01095_ as-37675 destroyed. 01095_ as-73688 destroyed. 01097_ as-29264 destroyed. 01097_ as-95599 destroyed. 01097_ HV Slug penetrates Laser Drill. 01099_ as-19813 destroyed. 01099_ HV Slug penetrates Wall. 01101_ D-53 Grenadier suffers critical hit (Destroy). 01101_ D-53 Grenadier destroyed. Map ----- +----------------------------------------------------+ | ?????# ##### #?# """ ###?????????? | | ?????# ###### ###??# #?# """ ##????#????? | | ?????#######????#####????# #? # #?????????? | | ???????????????????#??#??# ## ## #?????????? | | ???????????????????????#?# = ### ####???????? | | ??????????????????#?#????#### ##?###????#??#??? | | ????????????????#???????????## ##?????#???????? | | ????????????????????????????#%! #?????????????? | | ?????????????????##??????#??" "" ##????????????? | | ??????????????????????????## % " #????#????????? | | ????????????????#??#??#??# # "" #?????????????? | | ?????????????????????#??? ##?????????????? | | ?????????????????????##### ##?????????????? | | ?????????????????????## %% #??#???????#??? | | ??????????????????#??# ##????????????? | | ?????????????????????# #????????????? | | ????????????????????### #??#?????????? | | ????????????????????# ##????????#???? | | ????????????????????# # ###?????????????? | | ??????###??????????## # #???????????????? | | ?????## ##????????# a % # #??#???????????? | | ?????# #????????#a #######?????????? | | ?????# #????????# # ##### ##????????? | | ?????# #???????## ####??# #?????#### | | ????## #??????## #####????# #?????# | | ???## ###???# @ #????# #?????# | | ???# ##### < #????# < #??????# "" | | ??# *% #### #????## ##?###### "" | | ??# | ###??# #?????# ##??# "" | | ??## ########????# #?????# #???# ### | | ???###### ##???????????# #?????#$#???# #?# "" | | ????????#######????????????# ####### ##### #?# "" | | ???????????????????????????# #?# "" | | ???????????????????????????##################?# | | ??????????????????????????????????????????????#### | | ?????????????????????????????????????????????????? | | ?????????????????????????????????????????????????? | | ?????????????????????????????????????????????????? | | | | | | | | | | | | | | | | | | | | | | | | | +----------------------------------------------------+ Best States ------------- Heat Dissipation 25 Energy Generation 14 Energy Capacity 250 Matter Stores 300 Matter Capacity 300 Sight Range 16 Terrain Scan Range 16 Terrain Scan Density 10 Evasion (%) 40 Recoil Reduction 1 Item Schematics ----------------- None Robot Schematics ------------------ None Fabricated ------------ Nothing Repaired ---------- Nothing Studied --------- None Alien Tech Used ----------------- None Achievements -------------- None Challenges ------------ None Game ------ Seed GlidesysArchitectShifter Manual? 0 Play Time 00:17:01 Cumulative 116.5 hours Start 2026.02.17 @ 15:07:03 End 2026.02.17 @ 15:21:42 Sessions 1 Manual Loads 0 Difficulty Rogue Special Mode None Game No. 145 Rogue 145 Adventurer 0 Explorer 0 Win Type - Total 1 Types 1/0/0/0/0/0/0/0/0/0 Lore% 26 Gallery% 45 Achievement% 32 Wizard Run 0 Options --------- Layout 0 ASCII 0 Keyboard 0 Movement Mouse Keybinds 0 Fullscreen 1 Font 24/Smallcaps Map View 76x50 Zoom Use 0% Tactical HUD 1 Map Filters NONE Filters NONE Steam 1 RUN: 67f093e7-3b32-4072-8c69-3670043ec184